fUSD/lending_fUSD_20250606
["ID","MTS","AMOUNT","RATE_DAILY","PERIOD"]
[364765217,1749232264569,-9400.84,0.00028219,5]
[364765218,1749232264579,-1025.22,0.00028219,5]
[364765219,1749232264589,-840.87,0.00028219,5]
[364765220,1749232264598,-497.59,0.00028219,5]
[364765221,1749232264607,-480.0,0.00028219,5]
[364765222,1749232264617,-480.0,0.00028219,5]
[364765223,1749232264626,-998.42,0.00028219,5]
[364765224,1749232264636,-529.79,0.00028219,5]
[364765225,1749232264646,-1301.33,0.00028219,5]
[364765226,1749232264655,-1362.78,0.00028219,5]
[364765227,1749232264664,-1124.54,0.00028219,5]
[364765228,1749232264674,-878.04,0.00028219,5]
[364765229,1749232264683,-480.0,0.00028219,5]
[364765230,1749232264692,-480.0,0.00028219,5]
[364765231,1749232264702,-876.69,0.00028219,5]
[364765232,1749232264712,-1190.68,0.00028219,5]
[364765233,1749232264721,-1561.38,0.00028219,5]
[364765234,1749232264730,-563.97,0.00028219,5]
[364765235,1749232264740,-719.53,0.00028219,5]
[364765236,1749232264749,-1158.61,0.00028219,5]
[364765237,1749232264759,-480.0,0.00028219,5]
[364765238,1749232264771,-607.42,0.00028219,5]
[364765239,1749232264781,-480.0,0.00028219,5]
[364765240,1749232264791,-975.39,0.00028219,5]
[364765241,1749232264801,-2546.76,0.00028219,5]
[364765242,1749232264810,-3172.10544535,0.00028219,5]
[364765243,1749232265209,-500.0,0.00028219,5]
[364765244,1749232265621,-480.0,0.00027397,5]
[364765245,1749232265630,-947.21134975,0.00027561,5]
[364765247,1749232594622,500.0,0.00035616,120]
[364765248,1749232594934,500.0,0.00035616,120]
[364765249,1749232595243,500.0,0.00035616,120]
[364765250,1749232595536,500.0,0.00035616,120]
[364765251,1749232595824,500.0,0.00035616,120]
[364765252,1749232596132,500.0,0.00035616,120]
[364765253,1749232596424,500.0,0.00035616,120]
[364765254,1749232596710,500.0,0.00035616,120]
[364765255,1749232596990,500.0,0.00035616,120]
[364765256,1749232597312,500.0,0.00035616,120]
[364765257,1749232597950,500.0,0.00035616,120]
[364765258,1749232598039,500.0,0.00035616,120]
[364765259,1749232598432,500.0,0.00035616,120]
[364765260,1749232598487,500.0,0.00035616,120]
[364765261,1749232599272,500.0,0.00035616,120]
[364765262,1749232599594,500.0,0.00035616,120]
[364765263,1749232600188,500.0,0.00035616,120]
[364765264,1749232600542,500.0,0.00035616,120]
[364765265,1749232600903,500.0,0.00035616,120]
[364765266,1749232601190,500.0,0.00035616,120]
[364765267,1749232601475,500.0,0.00035616,120]
[364765268,1749232601782,500.0,0.00035616,120]
[364765269,1749232602121,500.0,0.00035616,120]
[364765270,1749232602429,500.0,0.00035616,120]
[364765271,1749232602947,500.0,0.00035616,120]
[364765272,1749232603265,500.0,0.00035616,120]
[364765273,1749232603629,500.0,0.00035616,120]
[364765274,1749232603982,500.0,0.00035616,120]
[364765275,1749232604474,500.0,0.00035616,120]
[364765276,1749232604816,500.0,0.00035616,120]
[364765277,1749232605137,500.0,0.00035616,120]
[364765278,1749232605420,500.0,0.00035616,120]
[364765279,1749232605745,500.0,0.00035616,120]
[364765280,1749232606122,500.0,0.00035616,120]
[364765281,1749232606411,500.0,0.00035616,120]
[364765282,1749232606713,500.0,0.00035616,120]
[364765283,1749232607041,500.0,0.00035616,120]
[364765284,1749232607347,500.0,0.00035616,120]
[364765285,1749232607651,500.0,0.00035616,120]
[364765286,1749232608405,500.0,0.00035616,120]
[364765287,1749232608464,500.0,0.00035616,120]
[364765288,1749232608818,500.0,0.00035616,120]
[364765289,1749232608963,673.67218016,0.00035616,120]
[364765290,1749232621091,1000.00078847,0.0003561,120]
[364765291,1749232622120,10332.0,0.000356,120]
[364765294,1749232828920,157.71,0.00013699,2]
[364765296,1749232846426,611.43136179,0.00013699,2]
[364765297,1749232846499,611.43136179,0.00013699,2]
[364765302,1749233147311,406.76633462,0.00013699,2]
[364765303,1749233147348,180.56349787,0.00013699,2]
[364765304,1749233148455,203.38316731,0.00013699,2]
[364765306,1749233165379,5094.90000072,0.0003561,120]
[364765362,1749233252685,-176.96,0.00020428,2]
[364765400,1749233277255,-157.71,0.00020951,2]
[364765415,1749233431788,-1319.8,0.00023541,2]
[364765416,1749233431799,-203.0,0.00023936,2]
[364765417,1749233431809,-342.2473347,0.00025,5]
[364765418,1749233431819,-42.87122521,0.00025108,2]
[364765419,1749233431832,-957.12877479,0.00025108,2]
[364765420,1749233431842,-150.0,0.0002543,7]
[364765421,1749233431852,-200.0,0.00025515,2]
[364765422,1749233431862,-200.0,0.0002557,2]
[364765423,1749233431873,-150.0,0.00025601,2]
[364765424,1749233431882,-150.0,0.00025608,2]
[364765425,1749233431892,-150.24,0.00025609,2]
[364765426,1749233431904,-170.67,0.00025622,2]
[364765427,1749233431913,-1500.0,0.00025662,2]
[364765428,1749233431922,-1319.8,0.00025805,2]
[364765429,1749233431932,-721.79,0.00025881,30]
[364765430,1749233431941,-1200.0,0.00025886,2]
[364765431,1749233431951,-300.0,0.00025887,2]
[364765432,1749233431960,-23900.0,0.00025888,2]
[364765433,1749233431969,-885.73485064,0.000259,14]
[364765434,1749233431979,-151.0,0.00025923,2]
[364765435,1749233431988,-1000.0,0.00025923,2]
[364765436,1749233431998,-1957.856,0.00025923,2]
[364765437,1749233432008,-151.0,0.00025923,2]
[364765438,1749233432018,-152.07473124,0.00025923,2]
[364765439,1749233432027,-800.0,0.00025923,2]
[364765440,1749233432037,-800.0,0.00025923,2]
[364765441,1749233432046,-729.32407567,0.00025923,2]
[364765504,1749233432844,-70.67592433,0.00025923,2]
[364765505,1749233432855,-800.0,0.00025923,2]
[364765506,1749233432866,-800.0,0.00025923,2]
[364765507,1749233432875,-400.34768467,0.00025923,2]
[364765508,1749233432903,-352.30068246,0.00025923,2]
[364765509,1749233432915,-47.35163287,0.00025923,2]
[364765510,1749233432925,-151.0,0.00025923,2]
[364765511,1749233432934,-741.65467431,0.00025923,2]
[364765512,1749233432952,-58.34532569,0.00025923,2]
[364765513,1749233432962,-692.73003431,0.00025923,2]
[364765514,1749233432974,-107.26996569,0.00025923,2]
[364765515,1749233432983,-800.0,0.00025923,2]
[364765516,1749233432993,-630.49594781,0.00025923,2]
[364765517,1749233433004,-169.50405219,0.00025923,2]
[364765518,1749233433014,-800.0,0.00025923,2]
[364765519,1749233433023,-800.0,0.00025923,2]
[364765520,1749233433033,-800.0,0.00025923,2]
[364765521,1749233433042,-545.09482267,0.00025923,2]
[364765522,1749233433083,-254.90517733,0.00025923,2]
[364765523,1749233433093,-668.65185757,0.00025923,2]
[364765524,1749233433104,-60.11363857,0.00025923,2]
[364765525,1749233433116,-739.88636143,0.00025923,2]
[364765526,1749233433126,-207.4,0.00025923,2]
[364765527,1749233433136,-11941.43,0.00025938,2]
[364765528,1749233433146,-8828.70369221,0.00025938,2]
[364765535,1749233437657,-200.01393347,0.00023836,2]
[364765536,1749233437667,-21171.28630779,0.00025938,2]
[364765537,1749233437676,-29999.99,0.00025938,2]
[364765538,1749233437686,-2030.296672,0.00025978,2]
[364765539,1749233437696,-1000.0,0.00026001,2]
[364765540,1749233437706,-2105.41764886,0.00026033,2]
[364765541,1749233437715,-2183.31810187,0.00026088,2]
[364765542,1749233437728,-239.25,0.00026092,2]
[364765543,1749233437740,-17782.02,0.00026108,2]
[364765544,1749233437750,-1140.02,0.00026119,2]
[364765545,1749233437759,-1903.2878478,0.00026143,2]
[364765546,1749233437768,-150.0,0.00026243,2]
[364765547,1749233437778,-885.7348505,0.00026314,14]
[364765548,1749233437787,-203.0,0.0002634,5]
[364765549,1749233437797,-1000.0,0.00026381,2]
[364765550,1749233437806,-150.0,0.00026441,2]
[364765551,1749233437816,-151.0,0.00026471,2]
[364765552,1749233437829,-151.0,0.00026471,2]
[364765553,1749233437838,-150.24,0.0002657,2]
[364765554,1749233437848,-500.0,0.00026601,2]
[364765555,1749233437857,-150.0,0.00026615,2]
[364765556,1749233437867,-250.0,0.00026659,2]
[364765557,1749233437877,-150.0,0.00026727,2]
[364765558,1749233437886,-885.7348505,0.00026728,15]
[364765559,1749233437897,-185.04,0.00026811,2]
[364765560,1749233437906,-600.0,0.000269,9]
[364765561,1749233437915,-4223.4694,0.00026911,2]
[364765562,1749233437925,-5080.5685,0.00026911,2]
[364765563,1749233437934,-150.0,0.00026981,2]
[364765564,1749233437943,-179.0,0.00027,7]
[364765565,1749233437953,-256.4583895,0.00027019,2]
[364765566,1749233437962,-151.0,0.00027019,2]
[364765567,1749233437971,-303.31,0.00027027,2]
[364765568,1749233437981,-305.05,0.00027027,2]
[364765569,1749233437991,-304.28,0.00027027,2]
[364765570,1749233438000,-303.56,0.00027027,2]
[364765571,1749233438009,-304.78,0.00027027,2]
[364765572,1749233438019,-305.6,0.00027043,2]
[364765573,1749233438028,-302.49,0.00027043,2]
[364765574,1749233438037,-150.0,0.0002705,2]
[364765575,1749233438047,-301.98,0.00027058,2]
[364765576,1749233438055,-302.14,0.00027058,2]
[364765577,1749233438065,-301.74,0.00027058,2]
[364765578,1749233438074,-300.12,0.00027058,2]
[364765579,1749233438083,-150.0,0.0002706,2]
[364765580,1749233438092,-885.7348505,0.00027141,16]
[364765581,1749233438102,-190.0,0.0002716,2]
[364765582,1749233438111,-2500.0,0.00027197,2]
[364765583,1749233438120,-1000.0,0.00027197,2]
[364765584,1749233438129,-173.95021235,0.00027197,2]
[364765585,1749233438138,-257.08778627,0.00027197,2]
[364765586,1749233438147,-48068.3855788,0.00027287,2]
[364765587,1749233438156,-156.587,0.00027292,2]
[364765588,1749233438165,-693.3919763,0.00027292,2]
[364765589,1749233438174,-215.0738,0.00027292,2]
[364765590,1749233438184,-258.15469535,0.00027296,2]
[364765591,1749233438193,-9294.1837,0.00027297,2]
[364765592,1749233438203,-866.4131,0.00027297,2]
[364765593,1749233438213,-500.0,0.00027297,2]
[364765594,1749233438222,-36058.946,0.00027297,2]
[364765595,1749233438231,-187582.5771,0.00027297,2]
[364765596,1749233438241,-1000.0,0.00027297,2]
[364765597,1749233438250,-5000.0,0.00027297,2]
[364765598,1749233438259,-4222.85073994,0.000273,2]
[364765599,1749233438269,-250.0,0.00027307,2]
[364765600,1749233438278,-1000.0,0.00027307,2]
[364765601,1749233438287,-150.0,0.00027313,2]
[364765602,1749233438297,-16022.7951929,0.00027322,2]
[364765603,1749233438307,-7684.93174684,0.00027332,2]
[364765604,1749233438317,-258.15469534,0.00027369,2]
[364765605,1749233438326,-500.0,0.00027373,2]
[364765606,1749233438335,-500.0,0.00027373,2]
[364765607,1749233438344,-159.73554583,0.00027373,2]
[364765608,1749233438354,-500.0,0.00027373,2]
[364765609,1749233438363,-500.0,0.00027373,2]
[364765610,1749233438372,-177.60446165,0.00027373,2]
[364765611,1749233438381,-500.0,0.00027373,2]
[364765612,1749233438391,-500.0,0.00027373,2]
[364765613,1749233438400,-500.0,0.00027373,2]
[364765614,1749233438409,-164.6,0.00027384,2]
[364765615,1749233438419,-8337.78141988,0.00027387,2]
[364765616,1749233438431,-4256.79991293,0.00027387,2]
[364765629,1749233439701,-200.01393345,0.00024225,2]
[364765630,1749233439713,-179678.96098219,0.00027387,2]
[364765631,1749233439723,-114948.455229,0.00027387,2]
[364765632,1749233439733,-152.5,0.00027387,2]
[364765633,1749233439744,-228.23248437,0.00027396,2]
[364765634,1749233439753,-162.89521663,0.00027396,2]
[364765635,1749233439762,-480.0,0.00027397,5]
[364765636,1749233439772,-480.0,0.00027397,5]
[364765637,1749233439781,-592.92032422,0.00027397,5]
[364765638,1749233439790,-480.0,0.00027397,5]
[364765639,1749233439800,-480.0,0.00027397,5]
[364765640,1749233439810,-480.0,0.00027397,5]
[364765641,1749233439824,-480.0,0.00027397,5]
[364765642,1749233439844,-480.0,0.00027397,5]
[364765643,1749233439859,-480.0,0.00027397,5]
[364765644,1749233439869,-403.82998113,0.00027397,5]
[364765645,1749233439879,-618.31,0.00027397,5]
[364765646,1749233439888,-480.0,0.00027397,5]
[364765647,1749233439897,-480.0,0.00027397,5]
[364765648,1749233439906,-480.0,0.00027397,5]
[364765649,1749233439915,-480.0,0.00027397,5]
[364765650,1749233439925,-480.0,0.00027397,5]
[364765651,1749233439936,-480.0,0.00027397,5]
[364765652,1749233439945,-480.0,0.00027397,5]
[364765653,1749233439956,-480.0,0.00027397,5]
[364765654,1749233439965,-480.0,0.00027397,5]
[364765655,1749233439974,-500.0,0.00027397,5]
[364765656,1749233439985,-491.32292481,0.00027397,5]
[364765657,1749233439995,-480.0,0.00027397,5]
[364765658,1749233440004,-480.0,0.00027397,5]
[364765659,1749233440013,-480.0,0.00027397,5]
[364765660,1749233440022,-1041.13,0.00027397,5]
[364765661,1749233440032,-480.0,0.00027397,5]
[364765662,1749233440041,-511.9,0.00027397,5]
[364765663,1749233440051,-500.0,0.00027397,5]
[364765664,1749233440061,-480.0,0.00027397,5]
[364765665,1749233440071,-510.71684663,0.00027397,5]
[364765666,1749233440081,-480.0,0.00027397,5]
[364765667,1749233440091,-480.0,0.00027397,5]
[364765668,1749233440100,-480.0,0.00027397,5]
[364765669,1749233440110,-480.0,0.00027397,5]
[364765670,1749233440119,-480.0,0.00027397,5]
[364765671,1749233440129,-480.0,0.00027397,5]
[364765672,1749233440381,-480.0,0.00027397,5]
[364765673,1749233440391,-480.0,0.00027397,5]
[364765674,1749233440402,-921.49,0.00027397,5]
[364765675,1749233440412,-480.0,0.00027397,5]
[364765676,1749233440421,-480.0,0.00027397,5]
[364765677,1749233440430,-970.77,0.00027397,5]
[364765678,1749233440440,-581.46,0.00027397,5]
[364765679,1749233440450,-630.49,0.00027397,5]
[364765680,1749233440460,-413.98880786,0.00027397,5]
[364765681,1749233440471,-446.02258634,0.00027397,5]
[364765682,1749233440481,-347.19201022,0.00027397,5]
[364765683,1749233440492,-515.39,0.00027397,5]
[364765684,1749233440502,-1116.27,0.00027397,5]
[364765685,1749233440512,-480.0,0.00027397,5]
[364765686,1749233440521,-480.0,0.00027397,5]
[364765687,1749233440531,-480.0,0.00027397,5]
[364765688,1749233440542,-480.0,0.00027397,5]
[364765689,1749233440552,-910.32,0.00027397,5]
[364765690,1749233440562,-421.56590944,0.00027397,5]
[364765691,1749233440572,-480.0,0.00027397,5]
[364765692,1749233440582,-480.0,0.00027397,5]
[364765693,1749233440591,-480.0,0.00027397,5]
[364765694,1749233440602,-480.0,0.00027397,5]
[364765695,1749233440612,-480.0,0.00027397,5]
[364765696,1749233440622,-480.0,0.00027397,5]
[364765697,1749233440631,-630.37,0.00027397,5]
[364765698,1749233440641,-696.39,0.00027397,5]
[364765699,1749233440650,-393.6776107,0.00027397,5]
[364765700,1749233440660,-480.0,0.00027397,5]
[364765701,1749233440670,-480.0,0.00027397,5]
[364765702,1749233440679,-480.0,0.00027397,5]
[364765703,1749233440689,-480.0,0.00027397,5]
[364765704,1749233440699,-480.0,0.00027397,5]
[364765705,1749233440708,-480.0,0.00027397,5]
[364765706,1749233440718,-488.22,0.00027397,5]
[364765707,1749233440727,-480.0,0.00027397,5]
[364765708,1749233440737,-480.0,0.00027397,5]
[364765709,1749233440746,-480.0,0.00027397,5]
[364765710,1749233440756,-710.15,0.00027397,5]
[364765711,1749233440765,-480.0,0.00027397,5]
[364765712,1749233440775,-480.0,0.00027397,5]
[364765713,1749233440785,-480.0,0.00027397,5]
[364765714,1749233440795,-480.0,0.00027397,5]
[364765715,1749233440804,-480.0,0.00027397,5]
[364765716,1749233440813,-480.0,0.00027397,5]
[364765717,1749233440827,-500.29,0.00027397,5]
[364765718,1749233440836,-480.0,0.00027397,5]
[364765719,1749233440846,-480.0,0.00027397,5]
[364765720,1749233440855,-480.0,0.00027397,5]
[364765721,1749233440866,-480.0,0.00027397,5]
[364765722,1749233440876,-480.0,0.00027397,5]
[364765723,1749233440885,-858.15,0.00027397,5]
[364765724,1749233440896,-480.0,0.00027397,5]
[364765725,1749233440906,-610.44,0.00027397,5]
[364765726,1749233440914,-480.0,0.00027397,5]
[364765727,1749233440924,-530.54,0.00027397,5]
[364765728,1749233440933,-892.54,0.00027397,5]
[364765729,1749233440942,-480.0,0.00027397,5]
[364765730,1749233440952,-480.0,0.00027397,5]
[364765731,1749233440961,-913.77,0.00027397,5]
[364765732,1749233440971,-480.0,0.00027397,5]
[364765733,1749233440980,-447.71497567,0.00027397,5]
[364765734,1749233440990,-849.23,0.00027397,5]
[364765735,1749233440999,-695.69,0.00027397,5]
[364765736,1749233441008,-779.57,0.00027397,5]
[364765737,1749233441018,-480.0,0.00027397,5]
[364765738,1749233441027,-341.80124131,0.00027397,5]
[364765739,1749233441036,-480.0,0.00027397,5]
[364765740,1749233441046,-480.0,0.00027397,5]
[364765741,1749233441056,-480.0,0.00027397,5]
[364765742,1749233441065,-595.45,0.00027397,5]
[364765743,1749233441075,-1100.087298,0.00027397,5]
[364765744,1749233441084,-480.0,0.00027397,5]
[364765745,1749233441093,-480.0,0.00027397,5]
[364765746,1749233441103,-480.0,0.00027397,5]
[364765747,1749233441112,-480.0,0.00027397,5]
[364765748,1749233441122,-480.0,0.00027397,5]
[364765749,1749233441132,-480.0,0.00027397,5]
[364765750,1749233441141,-542.35,0.00027397,5]
[364765751,1749233441151,-480.0,0.00027397,5]
[364765752,1749233441161,-480.0,0.00027397,5]
[364765753,1749233441170,-1552.972635,0.00027397,5]
[364765754,1749233441180,-1401.38,0.00027397,5]
[364765755,1749233441189,-480.0,0.00027397,5]
[364765756,1749233441199,-480.0,0.00027397,5]
[364765757,1749233441209,-480.0,0.00027397,5]
[364765758,1749233441218,-285.87052552,0.00027397,5]
[364765759,1749233441228,-678.04,0.00027397,5]
[364765760,1749233441242,-480.0,0.00027397,5]
[364765761,1749233441257,-915.24,0.00027397,5]
[364765762,1749233441268,-480.0,0.00027397,5]
[364765763,1749233441278,-480.0,0.00027397,5]
[364765764,1749233441287,-690.31,0.00027397,5]
[364765765,1749233441297,-490.38619813,0.00027397,5]
[364765766,1749233441306,-492.68,0.00027397,5]
[364765767,1749233441316,-480.0,0.00027397,5]
[364765768,1749233441325,-490.68,0.00027397,5]
[364765769,1749233441335,-480.0,0.00027397,5]
[364765770,1749233441344,-480.0,0.00027397,5]
[364765771,1749233441354,-480.0,0.00027397,5]
[364765772,1749233441364,-480.0,0.00027397,5]
[364765773,1749233441374,-480.0,0.00027397,5]
[364765774,1749233441384,-480.0,0.00027397,5]
[364765775,1749233441394,-675.54,0.00027397,5]
[364765776,1749233441405,-480.0,0.00027397,5]
[364765777,1749233441415,-480.0,0.00027397,5]
[364765778,1749233441424,-480.0,0.00027397,5]
[364765779,1749233441435,-746.17,0.00027397,5]
[364765780,1749233441445,-480.0,0.00027397,5]
[364765781,1749233441455,-1236.07,0.00027397,5]
[364765782,1749233441465,-480.0,0.00027397,5]
[364765783,1749233441475,-706.4,0.00027397,5]
[364765784,1749233441485,-480.0,0.00027397,5]
[364765785,1749233441496,-480.0,0.00027397,5]
[364765786,1749233441506,-480.0,0.00027397,5]
[364765787,1749233441516,-519.16,0.00027397,5]
[364765788,1749233441525,-480.0,0.00027397,5]
[364765789,1749233441535,-813.51,0.00027397,5]
[364765790,1749233441545,-480.0,0.00027397,5]
[364765791,1749233441554,-480.0,0.00027397,5]
[364765792,1749233441564,-480.0,0.00027397,5]
[364765793,1749233441573,-480.0,0.00027397,5]
[364765794,1749233441582,-738.27,0.00027397,5]
[364765795,1749233441592,-799.76,0.00027397,5]
[364765796,1749233441601,-480.0,0.00027397,5]
[364765797,1749233441610,-480.0,0.00027397,5]
[364765798,1749233441619,-480.0,0.00027397,5]
[364765799,1749233441628,-834.94,0.00027397,5]
[364765800,1749233441638,-480.0,0.00027397,5]
[364765801,1749233441648,-480.0,0.00027397,5]
[364765802,1749233441657,-480.0,0.00027397,5]
[364765803,1749233441666,-480.0,0.00027397,5]
[364765804,1749233441675,-1111.05,0.00027397,5]
[364765805,1749233441685,-480.0,0.00027397,5]
[364765806,1749233441694,-480.0,0.00027397,5]
[364765807,1749233441704,-480.0,0.00027397,5]
[364765808,1749233441713,-480.0,0.00027397,5]
[364765809,1749233441722,-480.0,0.00027397,5]
[364765810,1749233441731,-625.76162546,0.00027397,5]
[364765811,1749233441741,-841.4,0.00027397,5]
[364765812,1749233441749,-520.81,0.00027397,5]
[364765813,1749233441759,-480.0,0.00027397,5]
[364765814,1749233441768,-600.0,0.00027397,30]
[364765815,1749233441778,-1547.72,0.00027397,5]
[364765816,1749233441787,-480.0,0.00027397,5]
[364765817,1749233441799,-480.0,0.00027397,5]
[364765818,1749233441808,-565.05,0.00027397,5]
[364765819,1749233441820,-480.0,0.00027397,5]
[364765820,1749233441830,-480.0,0.00027397,5]
[364765821,1749233441839,-480.0,0.00027397,5]
[364765822,1749233441849,-480.0,0.00027397,5]
[364765823,1749233441858,-480.0,0.00027397,5]
[364765824,1749233441869,-480.0,0.00027397,5]
[364765825,1749233441879,-480.0,0.00027397,5]
[364765826,1749233441888,-9106.75,0.00027397,5]
[364765827,1749233441899,-480.0,0.00027397,5]
[364765828,1749233441909,-772.55,0.00027397,5]
[364765829,1749233441918,-1112.09,0.00027397,5]
[364765830,1749233441927,-1362.94,0.00027397,5]
[364765831,1749233441937,-494.78,0.00027397,5]
[364765832,1749233441947,-480.0,0.00027397,5]
[364765833,1749233441956,-480.0,0.00027397,5]
[364765834,1749233441966,-7801.72,0.00027397,5]
[364765835,1749233441976,-480.0,0.00027397,5]
[364765836,1749233441986,-922.2,0.00027397,5]
[364765837,1749233441996,-880.74,0.00027397,5]
[364765838,1749233442007,-272.38234618,0.00027397,5]
[364765839,1749233442017,-150.0,0.00027397,5]
[364765840,1749233442027,-1139.37,0.00027397,5]
[364765841,1749233442037,-150.0,0.00027397,5]
[364765842,1749233442047,-150.0,0.00027397,5]
[364765843,1749233442057,-150.0,0.00027397,5]
[364765844,1749233442066,-150.0,0.00027397,5]
[364765845,1749233442075,-1000.0,0.00027397,2]
[364765846,1749233442085,-150.0,0.00027397,5]
[364765847,1749233442094,-150.0,0.00027397,5]
[364765848,1749233442105,-2509.91,0.00027397,5]
[364765849,1749233442114,-150.0,0.00027397,5]
[364765850,1749233442123,-150.0,0.00027397,5]
[364765851,1749233442133,-150.0,0.00027397,5]
[364765852,1749233442142,-150.0,0.00027397,5]
[364765853,1749233442152,-1271.34,0.00027397,5]
[364765854,1749233442161,-480.0,0.00027397,5]
[364765855,1749233442171,-1061.69,0.00027397,5]
[364765856,1749233442181,-570.82935401,0.00027397,5]
[364765857,1749233442191,-1098.83,0.00027397,5]
[364765858,1749233442200,-720.59,0.00027397,5]
[364765859,1749233442209,-836.14,0.00027397,5]
[364765860,1749233442219,-599.62,0.00027397,5]
[364765861,1749233442228,-500.0,0.00027397,2]
[364765862,1749233442238,-2887.58,0.00027397,5]
[364765863,1749233442247,-480.0,0.00027397,5]
[364765864,1749233442258,-480.0,0.00027397,5]
[364765865,1749233442267,-2165.73,0.00027397,5]
[364765866,1749233442278,-480.0,0.00027397,5]
[364765867,1749233442287,-480.0,0.00027397,5]
[364765868,1749233442297,-2154.36,0.00027397,5]
[364765869,1749233442307,-480.0,0.00027397,5]
[364765870,1749233442316,-2255.65,0.00027397,5]
[364765871,1749233442325,-728.36,0.00027397,5]
[364765872,1749233442335,-974.79,0.00027397,5]
[364765873,1749233442346,-966.65,0.00027397,5]
[364765874,1749233442356,-567.51966202,0.00027397,5]
[364765875,1749233442366,-500.0,0.00027397,5]
[364765877,1749233442376,-500.0,0.00027397,5]
[364765879,1749233442386,-480.0,0.00027397,5]
[364765881,1749233442396,-661.76,0.00027397,5]
[364765882,1749233442406,-480.0,0.00027397,5]
[364765883,1749233442415,-928.96,0.00027397,5]
[364765884,1749233442425,-880.98,0.00027397,5]
[364765885,1749233442436,-1264.16,0.00027397,5]
[364765886,1749233442446,-555.85,0.00027397,5]
[364765887,1749233442456,-480.0,0.00027397,5]
[364765888,1749233442466,-772.3,0.00027397,5]
[364765889,1749233442477,-480.0,0.00027397,5]
[364765890,1749233442486,-1054.5,0.00027397,5]
[364765891,1749233442496,-248.69335797,0.00027397,5]
[364765893,1749233442506,-1374.61,0.00027397,5]
[364765894,1749233442516,-480.0,0.00027397,5]
[364765896,1749233442528,-675.79,0.00027397,5]
[364765898,1749233442538,-394.77393986,0.00027397,5]
[364765900,1749233442548,-588.02,0.00027397,5]
[364765902,1749233442558,-686.81,0.00027397,5]
[364765904,1749233442568,-480.0,0.00027397,5]
[364765906,1749233442577,-480.0,0.00027397,5]
[364765908,1749233442586,-480.0,0.00027397,5]
[364765910,1749233442596,-480.0,0.00027397,5]
[364765911,1749233442606,-480.0,0.00027397,5]
[364765912,1749233442615,-1377.89,0.00027397,5]
[364765913,1749233442625,-480.0,0.00027397,5]
[364765915,1749233442634,-1743.38,0.00027397,5]
[364765916,1749233442643,-480.0,0.00027397,5]
[364765917,1749233442653,-480.0,0.00027397,5]
[364765918,1749233442662,-480.0,0.00027397,5]
[364765919,1749233442671,-1237.26,0.00027397,5]
[364765920,1749233442680,-997.33,0.00027397,5]
[364765921,1749233442690,-480.0,0.00027397,5]
[364765922,1749233442699,-3230.68,0.00027397,5]
[364765923,1749233442708,-480.0,0.00027397,5]
[364765924,1749233442718,-9440.69,0.00027397,5]